[Event "14e Open International de Quenza"]
[Site "Quenza, France"]
[Date "????.??.??"]
[Round "8.8"]
[White "Skripchenko, Almira"]
[Black "Roubert, Emile"]
[Result "1-0"]
[TimeControl "5min+3s"]
[WhiteElo "2359"]
[BlackElo "2055"]

1. e4 {[%clk 00:05:03]} {[%emt 00:00:04]} e5 {[%clk 00:05:03]} {[%emt
00:00:01]} 2. Nf3 {[%clk 00:05:03]} {[%emt 00:00:01]} Nc6 {[%clk 00:05:03]} 3.
Bb5 {[%clk 00:05:03]} a6 {[%clk 00:05:03]} 4. Ba4 {[%clk 00:05:03]} Nf6 {[%clk
00:05:03]} 5. Nc3 {[%clk 00:05:03]} {[%emt 00:00:02]} b5 {[%clk 00:04:59]}
{[%emt 00:00:16]} 6. Bb3 {[%clk 00:05:03]} {[%emt 00:00:01]} Be7 {[%clk
00:04:58]} {[%emt 00:00:05]} 7. d3 {[%clk 00:04:46]} {[%emt 00:00:21]} d6
{[%clk 00:04:03]} {[%emt 00:00:58]} 8. a4 {[%clk 00:04:33]} {[%emt 00:00:15]}
b4 {[%clk 00:03:49]} {[%emt 00:00:16]} 9. Nd5 {[%clk 00:04:33]} {[%emt
00:00:02]} Rb8 {[%clk 00:03:39]} {[%emt 00:00:13]} 10. h3 {[%clk 00:04:19]}
{[%emt 00:00:18]} O-O {[%clk 00:03:30]} {[%emt 00:00:12]} 11. Nxf6+ {[%clk
00:03:57]} {[%emt 00:00:25]} Bxf6 {[%clk 00:03:30]} {[%emt 00:00:02]} 12. g4
{[%clk 00:03:56]} {[%emt 00:00:03]} Nd4 {[%clk 00:02:21]} {[%emt 00:01:12]} 13.
Nxd4 {[%clk 00:03:28]} {[%emt 00:00:31]} exd4 {[%clk 00:02:21]} {[%emt
00:00:01]} 14. Qf3 {[%clk 00:03:19]} {[%emt 00:00:12]} Be6 {[%clk 00:02:16]}
{[%emt 00:00:08]} 15. h4 {[%clk 00:03:03]} {[%emt 00:00:19]} Bxb3 {[%clk
00:02:01]} {[%emt 00:00:18]} 16. cxb3 {[%clk 00:03:03]} {[%emt 00:00:01]} Qd7
{[%clk 00:01:58]} {[%emt 00:00:06]} 17. Kd1 {[%clk 00:02:45]} {[%emt 00:00:20]}
Rfe8 {[%clk 00:01:41]} {[%emt 00:00:20]} 18. g5 {[%clk 00:02:44]} {[%emt
00:00:04]} Be7 {[%clk 00:01:41]} {[%emt 00:00:02]} 19. Qh3 {[%clk 00:02:41]}
{[%emt 00:00:06]} Qe6 {[%clk 00:01:41]} {[%emt 00:00:03]} 20. Qxe6 {[%clk
00:02:41]} {[%emt 00:00:03]} fxe6 {[%clk 00:01:41]} 21. f4 {[%clk 00:02:41]}
{[%emt 00:00:02]} Rf8 {[%clk 00:01:31]} {[%emt 00:00:13]} 22. Bd2 {[%clk
00:02:41]} {[%emt 00:00:01]} c5 {[%clk 00:01:31]} {[%emt 00:00:02]} 23. Ke2
{[%clk 00:02:41]} {[%emt 00:00:02]} g6 {[%clk 00:01:30]} {[%emt 00:00:04]} 24.
h5 {[%clk 00:02:38]} {[%emt 00:00:06]} Kg7 {[%clk 00:01:21]} {[%emt 00:00:13]}
25. Raf1 {[%clk 00:02:38]} {[%emt 00:00:02]} Rf7 {[%clk 00:01:12]} {[%emt
00:00:12]} 26. Rf3 {[%clk 00:02:36]} {[%emt 00:00:04]} Rbf8 {[%clk 00:01:12]}
{[%emt 00:00:01]} 27. hxg6 {[%clk 00:02:36]} {[%emt 00:00:02]} hxg6 {[%clk
00:01:00]} {[%emt 00:00:16]} 28. Rfh3 {[%clk 00:02:36]} Rg8 {[%clk 00:00:59]}
{[%emt 00:00:04]} 29. Kf3 {[%clk 00:02:01]} {[%emt 00:00:38]} Kf8 {[%clk
00:00:52]} {[%emt 00:00:10]} 30. Kg4 {[%clk 00:02:01]} e5 {[%clk 00:00:35]}
{[%emt 00:00:21]} 31. f5 {[%clk 00:01:53]} {[%emt 00:00:11]} gxf5+ {[%clk
00:00:25]} {[%emt 00:00:14]} 32. exf5 {[%clk 00:01:53]} Ke8 {[%clk 00:00:19]}
{[%emt 00:00:09]} 33. Rh8 {[%clk 00:01:45]} {[%emt 00:00:11]} Rff8 {[%clk
00:00:19]} {[%emt 00:00:04]} 34. Rxg8 {[%clk 00:01:38]} {[%emt 00:00:09]} Rxg8
{[%clk 00:00:19]} 35. Rh7 {[%clk 00:01:38]} {[%emt 00:00:03]} 1-0

[Event "14e Open International de Quenza"]
[Site "Quenza, France"]
[Date "????.??.??"]
[Round "8.9"]
[White "Ratier-Fontana, Matteo"]
[Black "Depau, Alessandro"]
[Result "1-0"]
[TimeControl "5min+3s"]
[WhiteElo "2275"]
[BlackElo "1940"]

1. Nf3 {[%clk 00:05:03]} {[%emt 00:11:35]} Nf6 {[%clk 00:05:03]} {[%emt
00:00:02]} 2. d4 {[%clk 00:05:03]} {[%emt 00:00:01]} c6 {[%clk 00:05:03]}
{[%emt 00:00:03]} 3. Bf4 {[%clk 00:05:03]} {[%emt 00:00:03]} d5 {[%clk
00:05:00]} {[%emt 00:00:07]} 4. e3 {[%clk 00:05:02]} {[%emt 00:00:04]} Qb6
{[%clk 00:04:59]} {[%emt 00:00:04]} 5. Qc1 {[%clk 00:04:47]} {[%emt 00:00:19]}
Bf5 {[%clk 00:04:54]} {[%emt 00:00:07]} 6. Nbd2 {[%clk 00:04:45]} {[%emt
00:00:04]} Nbd7 {[%clk 00:04:54]} {[%emt 00:00:03]} 7. c3 {[%clk 00:04:42]}
{[%emt 00:00:07]} h6 {[%clk 00:04:52]} {[%emt 00:00:05]} 8. Be2 {[%clk
00:04:38]} {[%emt 00:00:07]} Rc8 {[%clk 00:04:51]} {[%emt 00:00:05]} 9. b4
{[%clk 00:04:29]} {[%emt 00:00:12]} Ne4 {[%clk 00:04:42]} {[%emt 00:00:11]} 10.
Nxe4 {[%clk 00:04:24]} {[%emt 00:00:08]} Bxe4 {[%clk 00:04:42]} {[%emt
00:00:02]} 11. O-O {[%clk 00:04:09]} {[%emt 00:00:17]} e6 {[%clk 00:04:42]}
{[%emt 00:00:02]} 12. a3 {[%clk 00:03:58]} {[%emt 00:00:14]} Be7 {[%clk
00:04:42]} {[%emt 00:00:01]} 13. c4 {[%emt 00:00:03]} O-O {[%clk 00:04:20]}
{[%emt 00:00:24]} 14. c5 {[%clk 00:03:57]} {[%emt 00:00:04]} Qd8 {[%clk
00:04:20]} {[%emt 00:00:01]} 15. b5 {[%clk 00:03:57]} Bf6 {[%clk 00:04:15]}
{[%emt 00:00:08]} 16. Bd6 {[%clk 00:03:55]} {[%emt 00:00:05]} Re8 {[%clk
00:04:12]} {[%emt 00:00:07]} 17. bxc6 {[%clk 00:03:55]} Rxc6 {[%clk 00:04:09]}
{[%emt 00:00:07]} 18. Rb1 {[%clk 00:03:45]} {[%emt 00:00:13]} Bxb1 {[%clk
00:03:54]} {[%emt 00:00:18]} 19. Qxb1 {[%clk 00:03:45]} {[%emt 00:00:02]} Rxd6
{[%clk 00:02:58]} {[%emt 00:00:58]} 20. cxd6 {[%clk 00:03:45]} {[%emt
00:00:02]} b6 {[%clk 00:02:58]} 21. Bb5 {[%clk 00:03:44]} {[%emt 00:00:05]} Rf8
{[%clk 00:02:58]} {[%emt 00:00:03]} 22. Qb4 {[%clk 00:03:33]} {[%emt 00:00:13]}
e5 {[%clk 00:02:40]} {[%emt 00:00:21]} 23. dxe5 {[%clk 00:03:28]} {[%emt
00:00:08]} Nxe5 {[%clk 00:02:16]} {[%emt 00:00:27]} 24. Nxe5 {[%clk 00:03:11]}
{[%emt 00:00:20]} Bxe5 {[%clk 00:02:16]} {[%emt 00:00:01]} 25. d7 {[%clk
00:03:11]} {[%emt 00:00:01]} Qc7 {[%clk 00:02:16]} {[%emt 00:00:03]} 26. f4
{[%clk 00:03:01]} {[%emt 00:00:13]} Bd6 {[%clk 00:02:16]} {[%emt 00:00:02]} 27.
Qd4 {[%clk 00:02:58]} {[%emt 00:00:06]} a6 {[%clk 00:02:08]} {[%emt 00:00:11]}
28. Bxa6 {[%clk 00:02:56]} {[%emt 00:00:05]} Qxd7 {[%clk 00:02:06]} {[%emt
00:00:05]} 29. Qxd5 {[%clk 00:02:56]} {[%emt 00:00:02]} Qe7 {[%clk 00:02:05]}
{[%emt 00:00:03]} 30. e4 {[%clk 00:02:28]} {[%emt 00:00:31]} Bxa3 {[%clk
00:02:04]} {[%emt 00:00:04]} 31. Rd1 {[%clk 00:02:26]} {[%emt 00:00:05]} Qc5+
{[%clk 00:01:48]} {[%emt 00:00:19]} 32. Qxc5 {[%clk 00:02:23]} {[%emt
00:00:07]} bxc5 {[%clk 00:01:47]} {[%emt 00:00:03]} 33. Bc4 {[%clk 00:02:23]}
{[%emt 00:00:03]} Kh7 {[%clk 00:01:35]} {[%emt 00:00:15]} 34. e5 {[%clk
00:02:20]} {[%emt 00:00:06]} Bb2 {[%clk 00:01:32]} {[%emt 00:00:06]} 35. Rd7
{[%clk 00:02:20]} {[%emt 00:00:02]} Bd4+ {[%clk 00:01:32]} {[%emt 00:00:02]} 36.
Kf1 {[%clk 00:02:19]} {[%emt 00:00:05]} Kg6 {[%clk 00:01:32]} {[%emt 00:00:02]}
37. g4 {[%clk 00:02:10]} {[%emt 00:00:11]} Be3 {[%clk 00:00:49]} {[%emt
00:00:46]} 38. Bd3+ {[%clk 00:02:10]} {[%emt 00:00:02]} f5 {[%clk 00:00:46]}
{[%emt 00:00:06]} 39. Bxf5+ {[%clk 00:01:28]} {[%emt 00:00:45]} Rxf5 {[%clk
00:00:46]} 40. gxf5+ {[%clk 00:00:45]} {[%emt 00:00:47]} Kxf5 {[%clk 00:00:46]}
41. Rf7+ {[%clk 00:00:43]} {[%emt 00:00:05]} Ke6 {[%clk 00:00:40]} {[%emt
00:00:08]} 42. Rxg7 {[%clk 00:00:43]} {[%emt 00:00:03]} Bxf4 {[%clk 00:00:39]}
{[%emt 00:00:04]} 43. h3 {[%clk 00:00:31]} {[%emt 00:00:15]} Kxe5 {[%clk
00:00:37]} {[%emt 00:00:05]} 44. Ke2 {[%clk 00:00:31]} {[%emt 00:00:02]} Kd4
{[%clk 00:00:36]} {[%emt 00:00:03]} 45. Rd7+ {[%clk 00:00:31]} {[%emt
00:00:04]} Kc3 {[%clk 00:00:33]} {[%emt 00:00:06]} 46. Rd3+ {[%clk 00:00:31]}
{[%emt 00:00:03]} Kc4 {[%clk 00:00:33]} {[%emt 00:00:01]} 47. Rf3 {[%clk
00:00:31]} {[%emt 00:00:03]} Bg5 {[%clk 00:00:33]} 48. h4 {[%clk 00:00:31]}
{[%emt 00:00:02]} Bc1 {[%clk 00:00:24]} {[%emt 00:00:11]} 49. Rf1 {[%clk
00:00:30]} {[%emt 00:00:04]} Bb2 {[%clk 00:00:23]} {[%emt 00:00:04]} 50. Rf5
{[%clk 00:00:23]} {[%emt 00:00:10]} Kb4 {[%clk 00:00:19]} {[%emt 00:00:08]} 51.
Kd3 {[%clk 00:00:22]} {[%emt 00:00:04]} Bc1 {[%clk 00:00:12]} {[%emt 00:00:09]}
52. Kc2 {[%clk 00:00:19]} {[%emt 00:00:07]} Be3 {[%clk 00:00:12]} {[%emt
00:00:01]} 53. Rf6 {[%clk 00:00:18]} {[%emt 00:00:04]} Kc4 {[%clk 00:00:12]}
{[%emt 00:00:02]} 54. Re6 {[%clk 00:00:18]} {[%emt 00:00:02]} Bf4 {[%clk
00:00:12]} {[%emt 00:00:01]} 55. Re4+ {[%emt 00:00:02]} Kd5 {[%emt 00:00:04]}
1-0

[Event "14e Open International de Quenza"]
[Site "Quenza, France"]
[Date "????.??.??"]
[Round "8.10"]
[White "Utrera, Ludovic"]
[Black "Tomasi, Albert"]
[Result "0-1"]
[TimeControl "5min+3s"]
[WhiteElo "2118"]
[BlackElo "2287"]

1. e4 {[%clk 00:05:03]} {[%emt 00:00:01]} c5 {[%clk 00:05:03]} {[%emt
00:00:02]} 2. Nc3 {[%clk 00:05:03]} {[%emt 00:00:01]} d6 {[%clk 00:05:03]}
{[%emt 00:00:02]} 3. d4 {[%clk 00:05:03]} {[%emt 00:00:01]} cxd4 {[%clk
00:05:03]} {[%emt 00:00:02]} 4. Qxd4 {[%clk 00:05:03]} {[%emt 00:00:01]} e5
{[%clk 00:04:59]} {[%emt 00:00:07]} 5. Bb5+ {[%clk 00:04:29]} {[%emt 00:00:37]}
Nd7 {[%clk 00:04:59]} {[%emt 00:00:03]} 6. Qd3 {[%clk 00:04:00]} {[%emt
00:00:33]} h6 {[%clk 00:04:59]} {[%emt 00:00:03]} 7. Be3 {[%clk 00:03:53]}
{[%emt 00:00:09]} Ngf6 {[%clk 00:04:59]} {[%emt 00:00:02]} 8. Nge2 {[%clk
00:03:48]} {[%emt 00:00:08]} Be7 {[%clk 00:04:59]} {[%emt 00:00:02]} 9. Ng3
{[%clk 00:03:48]} {[%emt 00:00:03]} a6 {[%clk 00:04:59]} {[%emt 00:00:04]} 10.
Bc4 {[%clk 00:03:47]} {[%emt 00:00:04]} Nb6 {[%clk 00:03:44]} {[%emt 00:01:18]}
11. Bb3 {[%clk 00:03:44]} {[%emt 00:00:06]} O-O {[%clk 00:03:42]} {[%emt
00:00:05]} 12. O-O {[%clk 00:03:35]} {[%emt 00:00:12]} Be6 {[%clk 00:03:33]}
{[%emt 00:00:12]} 13. Rad1 {[%clk 00:03:06]} {[%emt 00:00:32]} Rc8 {[%clk
00:03:33]} {[%emt 00:00:02]} 14. Nd5 {[%clk 00:02:20]} {[%emt 00:00:49]} Nfxd5
{[%clk 00:03:12]} {[%emt 00:00:24]} 15. exd5 {[%clk 00:02:20]} {[%emt
00:00:02]} Bd7 {[%clk 00:03:12]} 16. Nf5 {[%clk 00:02:11]} {[%emt 00:00:12]}
Re8 {[%clk 00:02:53]} {[%emt 00:00:23]} 17. c3 {[%clk 00:01:59]} {[%emt
00:00:14]} Bf8 {[%clk 00:02:53]} {[%emt 00:00:03]} 18. Bc2 {[%clk 00:01:58]}
{[%emt 00:00:05]} e4 {[%clk 00:02:48]} {[%emt 00:00:08]} 19. Qd4 {[%clk
00:01:57]} {[%emt 00:00:03]} Nc4 {[%clk 00:02:46]} {[%emt 00:00:05]} 20. Bxe4
{[%clk 00:01:38]} {[%emt 00:00:22]} Nxb2 {[%clk 00:02:39]} {[%emt 00:00:10]} 21.
Bc2 {[%clk 00:01:18]} {[%emt 00:00:23]} Nxd1 {[%clk 00:02:35]} {[%emt
00:00:08]} 22. Rxd1 {[%clk 00:01:18]} Qa5 {[%clk 00:02:24]} {[%emt 00:00:13]}
23. c4 {[%clk 00:00:22]} {[%emt 00:00:59]} Qxa2 {[%clk 00:02:20]} {[%emt
00:00:08]} 24. Qd3 {[%clk 00:00:22]} {[%emt 00:00:03]} g6 {[%clk 00:02:16]}
{[%emt 00:00:07]} 25. Nxh6+ {[%clk 00:00:22]} {[%emt 00:00:01]} Bxh6 {[%clk
00:02:16]} {[%emt 00:00:02]} 26. Bxh6 {[%clk 00:00:22]} Qxc4 {[%clk 00:02:16]}
{[%emt 00:00:02]} 27. Qxc4 {[%clk 00:00:07]} {[%emt 00:00:17]} Rxc4 {[%emt
00:00:08]} 0-1

[Event "14e Open International de Quenza"]
[Site "Quenza, France"]
[Date "????.??.??"]
[Round "8.11"]
[White "Guillemart, Serge"]
[Black "Ternault, Mathieu"]
[Result "1-0"]
[TimeControl "5min+3s"]
[WhiteElo "2135"]
[BlackElo "2276"]

1. d4 {[%clk 00:05:03]} {[%emt 00:01:58]} e6 {[%clk 00:05:03]} {[%emt
00:00:02]} 2. c4 {[%clk 00:05:03]} {[%emt 00:00:03]} b6 {[%clk 00:05:02]}
{[%emt 00:00:04]} 3. Nc3 {[%clk 00:05:03]} {[%emt 00:00:03]} Bb4 {[%clk
00:05:02]} {[%emt 00:00:01]} 4. Nf3 {[%clk 00:05:03]} {[%emt 00:00:03]} Bb7
{[%clk 00:05:02]} {[%emt 00:00:03]} 5. Qc2 {[%clk 00:04:57]} {[%emt 00:00:09]}
Nf6 {[%clk 00:05:02]} {[%emt 00:00:03]} 6. a3 {[%clk 00:04:57]} {[%emt
00:00:02]} Bxc3+ {[%clk 00:04:57]} {[%emt 00:00:08]} 7. Qxc3 {[%clk 00:04:57]}
{[%emt 00:00:01]} d6 {[%clk 00:04:57]} {[%emt 00:00:02]} 8. Bg5 {[%clk
00:04:57]} {[%emt 00:00:03]} h6 {[%clk 00:04:57]} {[%emt 00:00:03]} 9. Bh4
{[%clk 00:04:57]} {[%emt 00:00:03]} Nbd7 {[%clk 00:04:53]} {[%emt 00:00:08]} 10.
e3 {[%clk 00:04:57]} {[%emt 00:00:02]} Qe7 {[%clk 00:04:37]} {[%emt 00:00:19]}
11. Bd3 {[%clk 00:04:54]} {[%emt 00:00:05]} a5 {[%clk 00:04:09]} {[%emt
00:00:31]} 12. Rc1 {[%clk 00:04:47]} {[%emt 00:00:10]} a4 {[%clk 00:04:00]}
{[%emt 00:00:13]} 13. Bb1 {[%clk 00:04:19]} {[%emt 00:00:30]} Ra5 {[%clk
00:03:42]} {[%emt 00:00:21]} 14. Bc2 {[%clk 00:03:59]} {[%emt 00:00:24]} g5
{[%clk 00:03:26]} {[%emt 00:00:19]} 15. Bg3 {[%clk 00:03:59]} {[%emt 00:00:01]}
g4 {[%clk 00:02:10]} {[%emt 00:01:19]} 16. Nh4 {[%clk 00:03:59]} {[%emt
00:00:02]} Ne4 {[%clk 00:01:53]} {[%emt 00:00:21]} 17. Bxe4 {[%clk 00:03:59]}
{[%emt 00:00:02]} Bxe4 {[%clk 00:01:53]} {[%emt 00:00:01]} 18. O-O {[%clk
00:03:51]} {[%emt 00:00:10]} Rh5 {[%clk 00:01:46]} {[%emt 00:00:11]} 19. f3
{[%clk 00:03:47]} {[%emt 00:00:07]} Bb7 {[%clk 00:01:34]} {[%emt 00:00:15]} 20.
d5 {[%clk 00:03:47]} {[%emt 00:00:04]} e5 {[%clk 00:01:20]} {[%emt 00:00:17]}
21. Qe1 {[%clk 00:03:39]} {[%emt 00:00:11]} Rg8 {[%clk 00:00:53]} {[%emt
00:00:30]} 22. fxg4 {[%clk 00:03:39]} {[%emt 00:00:02]} Rxg4 {[%clk 00:00:53]}
{[%emt 00:00:03]} 23. Nf5 {[%clk 00:03:39]} {[%emt 00:00:01]} Qg5 {[%clk
00:00:41]} {[%emt 00:00:14]} 24. Qf2 {[%clk 00:03:22]} {[%emt 00:00:20]} Qg6
{[%clk 00:00:31]} {[%emt 00:00:14]} 25. Nh4 {[%clk 00:03:01]} {[%emt 00:00:24]}
Qg8 {[%clk 00:00:13]} {[%emt 00:00:21]} 26. Qe2 {[%clk 00:02:49]} {[%emt
00:00:15]} Nc5 {[%clk 00:00:13]} {[%emt 00:00:01]} 27. Rf6 {[%clk 00:02:43]}
{[%emt 00:00:09]} Rhxh4 {[%clk 00:00:13]} {[%emt 00:00:03]} 28. Bxh4 {[%clk
00:02:42]} {[%emt 00:00:04]} Rxh4 {[%clk 00:00:13]} 29. Rcf1 {[%clk 00:02:42]}
{[%emt 00:00:02]} Bc8 {[%clk 00:00:10]} {[%emt 00:00:07]} 30. Rxf7 {[%clk
00:02:42]} {[%emt 00:00:03]} Rg4 {[%clk 00:00:10]} {[%emt 00:00:03]} 31. Rf8+
{[%clk 00:02:33]} {[%emt 00:00:12]} Qxf8 {[%clk 00:00:10]} 32. Rxf8+ {[%clk
00:02:33]} Kxf8 {[%clk 00:00:10]} {[%emt 00:00:02]} 33. h3 {[%clk 00:02:29]}
{[%emt 00:00:06]} Rg6 {[%clk 00:00:10]} 34. Kh2 {[%clk 00:02:29]} {[%emt
00:00:01]} Kg7 {[%clk 00:00:10]} 35. Qf2 {[%clk 00:02:28]} {[%emt 00:00:05]}
Ne4 {[%clk 00:00:10]} {[%emt 00:00:03]} 36. Qh4 {[%clk 00:02:28]} {[%emt
00:00:01]} Nf6 {[%clk 00:00:10]} {[%emt 00:00:02]} 37. c5 {[%clk 00:02:27]}
{[%emt 00:00:04]} bxc5 {[%clk 00:00:10]} {[%emt 00:00:02]} 38. Qxa4 {[%clk
00:02:27]} Bf5 {[%clk 00:00:09]} {[%emt 00:00:03]} 39. Qc6 {[%clk 00:02:25]}
{[%emt 00:00:05]} Be4 {[%clk 00:00:09]} {[%emt 00:00:03]} 40. Qxc7+ {[%clk
00:02:25]} {[%emt 00:00:03]} Kh8 {[%clk 00:00:09]} {[%emt 00:00:01]} 41. g3
{[%clk 00:02:22]} {[%emt 00:00:06]} h5 {[%clk 00:00:09]} {[%emt 00:00:01]} 42.
a4 {[%clk 00:02:19]} {[%emt 00:00:06]} Nxd5 {[%clk 00:00:09]} {[%emt 00:00:01]}
43. Qd8+ {[%clk 00:02:18]} {[%emt 00:00:04]} Kh7 {[%clk 00:00:09]} {[%emt
00:00:02]} 44. a5 {[%clk 00:02:18]} {[%emt 00:00:01]} Nxe3 {[%clk 00:00:09]}
{[%emt 00:00:02]} 45. Qf8 {[%clk 00:02:07]} {[%emt 00:00:14]} h4 {[%clk
00:00:09]} {[%emt 00:00:03]} 46. g4 {[%clk 00:02:07]} {[%emt 00:00:01]} Nd5
{[%clk 00:00:07]} {[%emt 00:00:05]} 47. Qf7+ {[%clk 00:02:01]} {[%emt
00:00:08]} Kh6 {[%clk 00:00:06]} {[%emt 00:00:04]} 48. a6 {[%clk 00:01:46]}
{[%emt 00:00:18]} Nf4 {[%clk 00:00:06]} {[%emt 00:00:01]} 49. a7 {[%clk
00:01:43]} {[%emt 00:00:06]} Rg7 {[%clk 00:00:06]} 50. Qf6+ {[%clk 00:01:43]}
{[%emt 00:00:02]} Ng6 {[%clk 00:00:05]} {[%emt 00:00:05]} 51. Qxd6 {[%clk
00:01:34]} {[%emt 00:00:12]} Rxa7 {[%clk 00:00:05]} 52. Qxc5 {[%clk 00:01:34]}
{[%emt 00:00:01]} Rb7 {[%clk 00:00:05]} {[%emt 00:00:01]} 53. Qc3 {[%clk
00:01:31]} {[%emt 00:00:06]} Rf7 {[%clk 00:00:05]} {[%emt 00:00:01]} 54. Qd2+
{[%clk 00:01:31]} {[%emt 00:00:03]} Kh7 {[%clk 00:00:05]} {[%emt 00:00:02]} 55.
b4 {[%clk 00:01:31]} {[%emt 00:00:02]} Rf3 {[%clk 00:00:05]} {[%emt 00:00:01]}
56. Qg5 {[%clk 00:01:30]} {[%emt 00:00:04]} Rf2+ {[%clk 00:00:05]} {[%emt
00:00:03]} 57. Kg1 Rg2+ {[%emt 00:00:02]} 58. Kf1 {[%clk 00:01:30]} Rb2 {[%clk
00:00:05]} {[%emt 00:00:02]} 59. Qh5+ {[%clk 00:01:19]} {[%emt 00:00:14]} Kg7
{[%clk 00:00:05]} 60. g5 {[%clk 00:01:19]} Rb1+ {[%clk 00:00:04]} {[%emt
00:00:04]} 61. Kf2 {[%clk 00:01:19]} {[%emt 00:00:02]} Rb2+ {[%clk 00:00:04]}
{[%emt 00:00:01]} 62. Ke3 {[%clk 00:01:19]} {[%emt 00:00:01]} Bg2 {[%emt
00:00:03]} 63. Qh6+ Kf7 {[%clk 00:00:04]} {[%emt 00:00:01]} 64. Qh7+ {[%clk
00:01:19]} {[%emt 00:00:01]} Kf8 {[%clk 00:00:04]} {[%emt 00:00:03]} 65. Qxg6
{[%clk 00:01:19]} {[%emt 00:00:02]} Bxh3 {[%clk 00:00:04]} {[%emt 00:00:03]} 66.
Qf6+ {[%clk 00:01:19]} {[%emt 00:00:02]} Kg8 {[%clk 00:00:04]} {[%emt
00:00:02]} 67. g6 {[%clk 00:01:19]} Rb3+ {[%clk 00:00:04]} {[%emt 00:00:04]} 68.
Ke4 {[%emt 00:00:09]} 1-0

[Event "14e Open International de Quenza"]
[Site "Quenza, France"]
[Date "????.??.??"]
[Round "8.12"]
[White "Bonelli Maestracci, Pierre Joseph"]
[Black "Deladerriere, Calypso"]
[Result "1-0"]
[TimeControl "5min+3s"]
[WhiteElo "2098"]
[BlackElo "2060"]

1. e4 {[%clk 00:05:03]} c5 {[%clk 00:05:03]} {[%emt 00:00:01]} 2. Nf3 {[%clk
00:05:03]} {[%emt 00:00:01]} e6 {[%clk 00:05:03]} 3. c3 {[%clk 00:05:03]} d5
{[%emt 00:00:02]} 4. e5 d4 {[%emt 00:00:01]} 5. d3 Nc6 {[%clk 00:04:58]} {[%emt
00:00:08]} 6. Qe2 {[%clk 00:05:03]} {[%emt 00:00:04]} Nge7 {[%clk 00:04:50]}
{[%emt 00:00:11]} 7. g3 {[%clk 00:05:03]} Ng6 {[%clk 00:04:36]} {[%emt
00:00:18]} 8. Bg2 {[%clk 00:05:03]} Be7 {[%clk 00:04:36]} {[%emt 00:00:01]} 9.
O-O {[%clk 00:05:01]} {[%emt 00:00:04]} O-O {[%clk 00:04:36]} {[%emt 00:00:03]}
10. Re1 {[%clk 00:04:56]} {[%emt 00:00:08]} Rb8 {[%clk 00:04:35]} {[%emt
00:00:05]} 11. h4 {[%clk 00:04:45]} {[%emt 00:00:15]} Re8 {[%clk 00:04:28]}
{[%emt 00:00:09]} 12. h5 {[%clk 00:04:31]} {[%emt 00:00:17]} Nf8 {[%clk
00:04:28]} {[%emt 00:00:02]} 13. Nbd2 {[%clk 00:04:29]} {[%emt 00:00:05]} Nd7
{[%clk 00:04:05]} {[%emt 00:00:27]} 14. h6 {[%clk 00:04:16]} {[%emt 00:00:16]}
g6 {[%clk 00:03:39]} {[%emt 00:00:29]} 15. Ne4 {[%clk 00:04:15]} {[%emt
00:00:04]} Ndxe5 {[%clk 00:03:29]} {[%emt 00:00:13]} 16. Nxe5 {[%clk 00:04:15]}
{[%emt 00:00:01]} Nxe5 {[%clk 00:03:29]} {[%emt 00:00:02]} 17. Bf4 {[%clk
00:04:15]} f6 {[%clk 00:02:24]} {[%emt 00:01:09]} 18. Nxf6+ {[%clk 00:04:15]}
{[%emt 00:00:01]} Bxf6 {[%clk 00:02:24]} 19. Bxe5 {[%clk 00:04:15]} Ra8 {[%clk
00:02:24]} 20. c4 {[%clk 00:04:02]} {[%emt 00:00:17]} Rf8 {[%clk 00:02:16]}
{[%emt 00:00:10]} 21. f4 {[%clk 00:03:49]} {[%emt 00:00:15]} a5 {[%clk
00:01:58]} {[%emt 00:00:21]} 22. Bxf6 {[%clk 00:03:46]} {[%emt 00:00:07]} Qxf6
{[%clk 00:01:57]} {[%emt 00:00:04]} 23. Qe5 {[%clk 00:03:46]} Qe7 {[%clk
00:01:45]} {[%emt 00:00:16]} 24. Rf1 {[%clk 00:03:20]} {[%emt 00:00:29]} Rf5
{[%clk 00:01:44]} {[%emt 00:00:04]} 25. Qe2 {[%clk 00:03:17]} {[%emt 00:00:06]}
Qf8 {[%clk 00:01:44]} {[%emt 00:00:01]} 26. Bh3 {[%clk 00:02:46]} {[%emt
00:00:33]} Rf7 {[%clk 00:00:37]} {[%emt 00:01:11]} 27. Rae1 {[%clk 00:02:42]}
{[%emt 00:00:07]} Ra6 {[%clk 00:00:32]} {[%emt 00:00:08]} 28. Qe5 {[%clk
00:02:22]} {[%emt 00:00:23]} Qxh6 {[%clk 00:00:26]} {[%emt 00:00:09]} 29. Bg4
{[%clk 00:02:22]} Qf8 {[%clk 00:00:23]} {[%emt 00:00:06]} 30. Rf2 {[%clk
00:02:15]} {[%emt 00:00:10]} Rc6 {[%clk 00:00:17]} {[%emt 00:00:08]} 31. Rfe2
{[%clk 00:02:14]} {[%emt 00:00:04]} Rb6 {[%clk 00:00:11]} {[%emt 00:00:10]} 32.
b3 {[%clk 00:02:13]} {[%emt 00:00:03]} Ra6 {[%clk 00:00:11]} {[%emt 00:00:02]}
33. Qg5 {[%clk 00:02:09]} {[%emt 00:00:07]} Rf6 {[%clk 00:00:11]} {[%emt
00:00:02]} 34. Qe5 {[%clk 00:01:50]} {[%emt 00:00:23]} Rc6 {[%clk 00:00:11]}
{[%emt 00:00:02]} 35. Bf3 {[%clk 00:01:26]} {[%emt 00:00:27]} Ra6 {[%clk
00:00:11]} {[%emt 00:00:02]} 36. Bg4 {[%clk 00:01:18]} {[%emt 00:00:12]} Rc6
{[%clk 00:00:11]} {[%emt 00:00:01]} 37. Bh3 {[%clk 00:01:18]} {[%emt 00:00:01]}
Ra6 {[%clk 00:00:11]} {[%emt 00:00:02]} 38. Qg5 {[%clk 00:01:17]} {[%emt
00:00:04]} Rc6 {[%clk 00:00:10]} {[%emt 00:00:04]} 39. Re5 {[%clk 00:01:17]}
Kg7 {[%clk 00:00:09]} {[%emt 00:00:03]} 40. Qg4 {[%clk 00:01:12]} {[%emt
00:00:08]} Rf5 {[%clk 00:00:07]} {[%emt 00:00:06]} 41. Qf3 {[%clk 00:01:09]}
{[%emt 00:00:05]} Rxe5 {[%clk 00:00:07]} 42. Rxe5 {[%clk 00:01:09]} Qf7 {[%clk
00:00:05]} {[%emt 00:00:05]} 43. Qe4 {[%clk 00:01:09]} {[%emt 00:00:01]} Ra6
{[%clk 00:00:05]} {[%emt 00:00:02]} 44. Rxc5 {[%clk 00:01:09]} {[%emt
00:00:01]} Bd7 {[%clk 00:00:05]} {[%emt 00:00:02]} 45. Qxd4+ {[%clk 00:01:09]}
Kf8 {[%emt 00:00:03]} 46. Re5 {[%clk 00:01:08]} {[%emt 00:00:04]} a4 {[%clk
00:00:05]} {[%emt 00:00:03]} 47. b4 {[%clk 00:01:08]} {[%emt 00:00:01]} a3
{[%emt 00:00:01]} 48. b5 {[%clk 00:01:05]} {[%emt 00:00:06]} Ra8 {[%clk
00:00:05]} {[%emt 00:00:02]} 49. Qd6+ {[%clk 00:01:04]} {[%emt 00:00:04]} Kg7
{[%clk 00:00:05]} {[%emt 00:00:01]} 50. Bxe6 {[%clk 00:01:03]} {[%emt
00:00:05]} Bxe6 {[%clk 00:00:05]} {[%emt 00:00:02]} 51. Qxe6 {[%clk 00:01:03]}
Rd8 {[%clk 00:00:05]} {[%emt 00:00:02]} 52. Qxf7+ Kxf7 {[%clk 00:00:05]} 53.
Re3 {[%clk 00:01:03]} b6 {[%clk 00:00:05]} {[%emt 00:00:02]} 54. Kf2 {[%clk
00:01:03]} 1-0